[Event "8th Amsterdam Summer Open-A 2018"]
[Site "Amsterdam"]
[Date "2018.07.15"]
[Round "9"]
[White "Cornelisse, John"]
[Black "Mesman, Edwyn"]
[Result "1/2-1/2"]
[ECO "E54"]
[WhiteElo "2132"]
[BlackElo "2100"]
[Annotator "NA"]
[PlyCount "26"]
[EventDate "2018.07.07"]
[EventType "swiss"]
[EventCountry "NED"]
[SourceTitle "playchess.com"]
[Source "ChessBase"]
[SourceQuality "1"]
[TimeControl "40/5400+30:1800+30"]

1. d4 {[%emt 0:00:00]} Nf6 {[%emt 0:00:00]} 2. c4 {[%emt 0:00:00]} e6 {[%emt 0:00:00]} 3. Nc3 {[%emt 0:00:03]} Bb4 {[%emt 0:00:00]} 4. e3 {[%emt 0:00:07]} O-O {[%emt 0:00:00]} 5. Bd3 {[%emt 0:00:07]} c5 {[%emt 0:00:05]} 6. Nf3 {[%emt 0:00:55]} d5 {[%emt 0:00:10]} 7. O-O {[%emt 0:00:16]} dxc4 {[%emt 0:00:09]} 8. Bxc4 {[%emt 0:00:08]} cxd4 {[%emt 0:00:08]} 9. exd4 {[%emt 0:00:07]} b6 {[%emt 0:00:18]} 10. Bg5 {[%emt 0:00:55]} Bb7 {[%emt 0:01:06]} 11. Re1 {[%emt 0:01:34]} Nbd7 {[%emt 0:00:13]} 12. Rc1 {[%emt 0:04:03]} Rc8 {[%emt 0:00:26]} 13. Qb3 {[%emt 0:13:38]} Be7 {[%emt 0:00:20]} 1/2-1/2

[Event "8th Amsterdam Summer Open-A 2018"]
[Site "Amsterdam"]
[Date "2018.07.15"]
[Round "9"]
[White "Vroombout, Enrico"]
[Black "Kossen, Johannes"]
[Result "1-0"]
[ECO "D31"]
[WhiteElo "2132"]
[BlackElo "2095"]
[Annotator "NA"]
[PlyCount "39"]
[EventDate "2018.07.07"]
[EventType "swiss"]
[EventCountry "NED"]
[SourceTitle "playchess.com"]
[Source "ChessBase"]
[SourceQuality "1"]
[TimeControl "40/5400+30:1800+30"]

1. d4 {[%emt 0:00:00]} d5 {[%emt 0:00:00]} 2. c4 {[%emt 0:00:00]} c6 {[%emt 0:00:00]} 3. Nf3 {[%emt 0:00:00]} e6 {[%emt 0:00:16]} 4. Nc3 {[%emt 0:00:00]} dxc4 {[%emt 0:00:12]} 5. Ne5 {[%emt 0:00:00]} b5 {[%emt 0:04:28]} 6. g3 {[%emt 0:00:00]} Bb7 {[%emt 0:00:51]} 7. Bg2 {[%emt 0:00:00]} Qc8 {[%emt 0:02:19]} 8. O-O {[%emt 0:07:04]} Nf6 {[%emt 0:04:07]} 9. b3 {[%emt 0:07:59]} b4 {[%emt 0:16:06]} 10. Na4 {[%emt 0:00:40]} c3 {[%emt 0:00:19]} 11. a3 {[%emt 0:00:07]} Nbd7 {[%emt 0:02:37]} 12. Nc4 {[%emt 0:26:48]} c5 {[%emt 0:18:22]} 13. Bxb7 {[%emt 0:01:31]} Qxb7 {[%emt 0:00:09]} 14. dxc5 {[%emt 0:01:49]} a5 {[%emt 0:02:44]} 15. Bf4 {[%emt 0:19:39]} Ne4 {[%emt 0:10:00]} 16. axb4 {[%emt 0:12:31]} axb4 {[%emt 0:00:22]} 17. Qd4 {[%emt 0:07:50]} f6 {[%emt 0:18:06]} 18. Bd6 {[%emt 0:06:53]} e5 {[%emt 0:04:30]} 19. Qe3 {[%emt 0:00:09]} Bxd6 {[%emt 0:00:22]} 20. Qxe4 {[%emt 0:00:12]} 1-0

[Event "8th Amsterdam Summer Open-A 2018"]
[Site "Amsterdam"]
[Date "2018.07.15"]
[Round "9"]
[White "Mijnheer, Peter"]
[Black "Prior, Stephen C V"]
[Result "0-1"]
[ECO "C10"]
[WhiteElo "2106"]
[BlackElo "2025"]
[Annotator "NA"]
[PlyCount "94"]
[EventDate "2018.07.07"]
[EventType "swiss"]
[EventCountry "NED"]
[SourceTitle "playchess.com"]
[Source "ChessBase"]
[SourceQuality "1"]
[TimeControl "40/5400+30:1800+30"]

1. e4 {[%emt 0:00:00]} e6 {[%emt 0:00:00]} 2. d4 {[%emt 0:00:00]} d5 {[%emt 0:00:00]} 3. Nd2 {[%emt 0:00:23]} dxe4 {[%emt 0:00:00]} 4. Nxe4 {[%emt 0:00:08]} Bd7 {[%emt 0:00:14]} 5. Nf3 {[%emt 0:00:22]} Bc6 {[%emt 0:00:17]} 6. Bd3 {[%emt 0:00:11]} Nd7 {[%emt 0:00:52]} 7. O-O {[%emt 0:00:16]} Ngf6 {[%emt 0:00:18]} 8. Ned2 {[%emt 0:00:50]} Be7 {[%emt 0:00:34]} 9. Re1 {[%emt 0:00:29]} O-O {[%emt 0:01:51]} 10. Ne5 {[%emt 0:08:13]} Nxe5 {[%emt 0:01:26]} 11. dxe5 {[%emt 0:00:17]} Nd7 {[%emt 0:05:14]} 12. Qh5 {[%emt 0:02:04]} g6 {[%emt 0:01:59]} 13. Qg4 {[%emt 0:05:28]} Re8 {[%emt 0:05:32]} 14. Nb3 {[%emt 0:02:50]} Nc5 {[%emt 0:04:33]} 15. Nxc5 {[%emt 0:02:48]} Bxc5 {[%emt 0:00:07]} 16. Be3 {[%emt 0:11:26]} Bxe3 {[%emt 0:07:28]} 17. Rxe3 {[%emt 0:00:59]} Qe7 {[%emt 0:01:34]} 18. Qf4 {[%emt 0:02:48]} Rad8 {[%emt 0:03:17]} 19. Rae1 {[%emt 0:01:14]} Rd7 {[%emt 0:10:56]} 20. Rh3 {[%emt 0:24:52]} Qf8 {[%emt 0:07:07]} 21. Qg5 {[%emt 0:11:38]} Rd4 {[%emt 0:08:55]} 22. f4 {[%emt 0:04:03]} Red8 {[%emt 0:05:19]} 23. Rh6 {[%emt 0:05:51]} Rxd3 {[%emt 0:02:02]} 24. cxd3 {[%emt 0:00:02]} Rxd3 {[%emt 0:00:42]} 25. f5 {[%emt 0:06:55]} Qc5+ {[%emt 0:03:14]} 26. Kh1 {[%emt 0:00:06]} Qf2 {[%emt 0:00:27]} 27. Rg1 {[%emt 0:00:11]} Qxf5 {[%emt 0:01:31]} 28. Qxf5 {[%emt 0:01:17]} exf5 {[%emt 0:00:12]} 29. Rh4 {[%emt 0:00:33]} Re3 {[%emt 0:00:42]} 30. Rd4 {[%emt 0:00:37]} Rxe5 {[%emt 0:00:22]} 31. Rd2 {[%emt 0:00:06]} Re3 {[%emt 0:01:54]} 32. Rc1 {[%emt 0:00:14]} f4 {[%emt 0:01:02]} 33. Kg1 {[%emt 0:00:06]} Kg7 {[%emt 0:03:03]} 34. Kf2 {[%emt 0:00:05]} Re6 {[%emt 0:01:08]} 35. Rc4 {[%emt 0:01:11]} g5 {[%emt 0:00:22]} 36. b4 {[%emt 0:00:28]} a6 {[%emt 0:00:19]} 37. Rc5 {[%emt 0:01:05]} h6 {[%emt 0:01:39]} 38. a4 {[%emt 0:00:28]} Bxa4 {[%emt 0:00:44]} 39. Rxc7 {[%emt 0:00:05]} Bc6 {[%emt 0:00:31]} 40. h4 {[%emt 0:01:54]} g4 {[%emt 0:01:37]} 41. g3 {[%emt 0:31:13]} fxg3+ {[%emt 0:30:46]} 42. Kxg3 {[%emt 0:00:04]} h5 {[%emt 0:00:32]} 43. Kf4 {[%emt 0:01:30]} Kg6 {[%emt 0:02:02]} 44. Rd8 {[%emt 0:00:13]} Re4+ {[%emt 0:00:54]} 45. Kg3 {[%emt 0:00:04]} Rxb4 {[%emt 0:00:43]} 46. Rg8+ {[%emt 0:00:14]} Kf6 {[%emt 0:00:19]} 47. Rh8 {[%emt 0:00:18]} Rb3+ {[%emt 0:02:09]} 0-1

[Event "8th Amsterdam Summer Open-A 2018"]
[Site "Amsterdam"]
[Date "2018.07.15"]
[Round "9"]
[White "Brouwer, Rein"]
[Black "Theulings, Paul-Peter"]
[Result "1/2-1/2"]
[ECO "E18"]
[WhiteElo "2062"]
[BlackElo "2088"]
[Annotator "NA"]
[PlyCount "31"]
[EventDate "2018.07.07"]
[EventType "swiss"]
[EventCountry "NED"]
[SourceTitle "playchess.com"]
[Source "ChessBase"]
[SourceQuality "1"]
[TimeControl "40/5400+30:1800+30"]

1. d4 {[%emt 0:00:00]} Nf6 {[%emt 0:00:00]} 2. c4 {[%emt 0:00:00]} e6 {[%emt 0:00:00]} 3. g3 {[%emt 0:00:00]} d5 {[%emt 0:00:00]} 4. Nf3 {[%emt 0:00:10]} Be7 {[%emt 0:00:00]} 5. Bg2 {[%emt 0:00:07]} O-O {[%emt 0:00:08]} 6. O-O {[%emt 0:00:05]} b6 {[%emt 0:00:04]} 7. Nc3 {[%emt 0:01:25]} Bb7 {[%emt 0:00:07]} 8. cxd5 {[%emt 0:02:36]} exd5 {[%emt 0:00:08]} 9. Bf4 {[%emt 0:01:35]} Na6 {[%emt 0:00:08]} 10. Rc1 {[%emt 0:02:34]} c5 {[%emt 0:00:15]} 11. dxc5 {[%emt 0:01:24]} Nxc5 {[%emt 0:00:09]} 12. Nb5 {[%emt 0:01:49]} Ne6 {[%emt 0:05:29]} 13. Be5 {[%emt 0:02:01]} Qd7 {[%emt 0:02:54]} 14. Nc7 {[%emt 0:09:23]} Rac8 {[%emt 0:01:19]} 15. Bh3 {[%emt 0:04:22]} Bd6 {[%emt 0:02:13]} 16. Bxd6 {[%emt 0:05:48]} 1/2-1/2

[Event "8th Amsterdam Summer Open-A 2018"]
[Site "Amsterdam"]
[Date "2018.07.15"]
[Round "9"]
[White "Hoekstra, Peter"]
[Black "Floor, Dirk"]
[Result "0-1"]
[ECO "B01"]
[WhiteElo "2031"]
[BlackElo "2196"]
[Annotator "NA"]
[PlyCount "44"]
[EventDate "2018.07.07"]
[EventType "swiss"]
[EventCountry "NED"]
[SourceTitle "playchess.com"]
[Source "ChessBase"]
[SourceQuality "1"]
[TimeControl "40/5400+30:1800+30"]

1. e4 {[%emt 0:00:00]} d5 {[%emt 0:00:00]} 2. exd5 {[%emt 0:00:00]} Qxd5 {[%emt 0:00:00]} 3. Nc3 {[%emt 0:01:46]} Qa5 {[%emt 0:00:12]} 4. Nf3 {[%emt 0:01:01]} Nf6 {[%emt 0:00:16]} 5. b4 {[%emt 0:10:15]} Qxb4 {[%emt 0:00:42]} 6. Rb1 {[%emt 0:00:04]} Qd6 {[%emt 0:01:08]} 7. Bc4 {[%emt 0:02:55]} c6 {[%emt 0:05:35]} 8. O-O {[%emt 0:01:55]} e6 {[%emt 0:00:39]} 9. d4 {[%emt 0:04:28]} Be7 {[%emt 0:00:55]} 10. Ne5 {[%emt 0:06:58]} O-O {[%emt 0:04:30]} 11. Bf4 {[%emt 0:01:04]} Qd8 {[%emt 0:01:33]} 12. Qf3 {[%emt 0:09:44]} Nbd7 {[%emt 0:07:46]} 13. Rfd1 {[%emt 0:27:43]} Nb6 {[%emt 0:00:47]} 14. Bd3 {[%emt 0:01:05]} Nbd5 {[%emt 0:04:50]} 15. Nxd5 Nxd5 16. Qe4 {[%emt 0:06:23]} f5 {[%emt 0:06:42]} 17. Qf3 {[%emt 0:00:38]} Nc3 {[%emt 0:07:06]} 18. Nxc6 {[%emt 0:00:36]} bxc6 {[%emt 0:02:05]} 19. Qxc6 {[%emt 0:00:09]} Nxd1 {[%emt 0:04:50]} 20. Qxa8 {[%emt 0:00:17]} Qxd4 {[%emt 0:00:55]} 21. Qf3 {[%emt 0:01:40]} Nc3 {[%emt 0:04:13]} 22. Rb3 {[%emt 0:00:34]} Nd5 {[%emt 0:01:17]} 0-1